Workbook

Sheet Cw1
B17: Sprzedaż firmy Zobrex - I połowa rok 2011 tysiace złotych]
C19: Styczeń | D19: Luty | E19: Marzec | F19: Kwiecień | G19: May | H19: Czerwiec
B20: Woj. Śląskie | C20: 80 | D20: 130 | E20: 125 | F20: 130 | G20: 140 | H20: 180
B21: Woj. Dolnośląskie | C21: 60 | D21: 80 | E21: 80 | F21: 100 | G21: 90 | H21: 100
B22: woj. opolskie | C22: 110 | D22: 120 | E22: 110 | F22: 120 | G22: 120 | H22: 130
B23: woj.. Wielkopolskie | C23: 40 | D23: 60 | E23: 70 | F23: 60 | G23: 60 | H23: 80
B25: Suma | C25: =SUM(C20:C23) -> 290 | D25: 390 | E25: 385 | F25: 410 | G25: 410 | H25: 490
C26: =AVERAGE(C25) -> 290 | D26: 390 | E26: 385 | F26: 410 | G26: 410 | H26: 490

Sheet Cw 2
C5: Sprzedaż firmy Zobrex - I połowa rok 2011 tysiace złotych]
D7: Styczeń | E7: Luty | F7: Marzec | G7: Kwiecień | H7: May | I7: Czerwiec | J7: Suma | K7: % of Total
C8: Woj. Śląskie | D8: 80 | E8: 130 | F8: 125 | G8: 130 | H8: 140 | I8: 180 | J8: =SUM(D8:I8) -> 785 | K8: =J8/$J$13 -> 0.3305263158
C9: Woj. Dolnośląskie | D9: 60 | E9: 80 | F9: 80 | G9: 100 | H9: 90 | I9: 100 | J9: =SUM(D9:I9) -> 510 | K9: =J9/$J$13 -> 0.2147368421
C10: woj. opolskie | D10: 110 | E10: 120 | F10: 110 | G10: 120 | H10: 120 | I10: 130 | J10: =SUM(D10:I10) -> 710 | K10: =J10/$J$13 -> 0.2989473684
C11: woj.. Wielkopolskie | D11: 40 | E11: 60 | F11: 70 | G11: 60 | H11: 60 | I11: 80 | J11: =SUM(D11:I11) -> 370 | K11: =J11/$J$13 -> 0.1557894737
C13: Suma | D13: =SUM(D8:D11) -> 290 | E13: 390 | F13: 385 | G13: 410 | H13: 410 | I13: 490 | J13: =SUM(D13:I13) -> 2375 | K13: =SUM(K8:K12) -> 1
C14: Średnia | D14: =AVERAGE(D8:D11) -> 72.5 | E14: 97.5 | F14: 96.25 | G14: 102.5 | H14: 102.5 | I14: 122.5 | J14: 593.75

Sheet Cw 3
D5: Styczeń | E5: Luty | F5: Marzec | G5: Kwiecień | H5: May | I5: Czerwiec | J5: Suma
C6: Woj. Śląskie | D6: 80 | E6: 130 | F6: 125 | G6: 130 | H6: 140 | I6: 180 | J6: =SUM(D6:I6) -> 785
C7: Woj. Dolnośląskie | D7: 60 | E7: 80 | F7: 80 | G7: 100 | H7: 90 | I7: 100 | J7: =SUM(D7:I7) -> 510
C8: woj. opolskie | D8: 110 | E8: 120 | F8: 110 | G8: 120 | H8: 120 | I8: 130 | J8: =SUM(D8:I8) -> 710
C9: woj.. Wielkopolskie | D9: 40 | E9: 60 | F9: 70 | G9: 60 | H9: 60 | I9: 80 | J9: =SUM(D9:I9) -> 370
C11: Suma | D11: =SUM(D6:D9) -> 290 | E11: 390 | F11: 385 | G11: 410 | H11: 410 | I11: 490
D12: =AVERAGE(D11) -> 290 | E12: 390 | F12: 385 | G12: 410 | H12: 410 | I12: 490

Sheet Cw 4
C4: Kolumna1 | D4: Miesiąc | E4: Sprzedaż
C5: 2008 | D5: Styczeń | E5: 1592398
D6: Luty | E6: 1597197
D7: Marzec | E7: 1666080
D8: Kwiecień | E8: 2484340
D9: Maj | E9: 2669323
D10: Czerwiec | E10: 5123231
D11: Lipiec | E11: 3360840
D12: Sierpień | E12: 6989238
D13: Wrzesień | E13: 7729650
D14: Październik | E14: 6038549
D15: Listopad | E15: 5484312
D16: Grudzień | E16: 8551452
C17: 2009 | D17: Styczeń | E17: 1234542
D18: Luty | E18: 8831025
D19: Marzec | E19: 6924096
D20: Kwiecień | E20: 13085376
D21: Maj | E21: 8230572
D22: Czerwiec | E22: 12352014
D23: Lipiec | E23: 8246180
D24: Sierpień | E24: 12531645
D25: Wrzesień | E25: 11636328
D26: Październik | E26: 14015464
D27: Listopad | E27: 19252800
D28: Grudzień | E28: 19362725
C29: 2010 | D29: Styczeń | E29: 12495600
D30: Luty | E30: 19798587
D31: Marzec | E31: 17511312
D32: Kwiecień | E32: 22216929
D33: Maj | E33: 14804280
D34: Czerwiec | E34: 17176170

Sheet Cw 5
B2: Wiek | C2: Czas biegu
B3: 33 | C3: 00:50:35
B4: 28 | C4: 00:51:36
B5: 44 | C5: 00:53:20
B6: 32 | C6: 00:53:42
B7: 22 | C7: 00:53:48
B8: 24 | C8: 00:47:33
B9: 36 | C9: 00:47:50
B10: 31 | C10: 00:48:35
B11: 33 | C11: 00:49:45
B12: 24 | C12: 00:47:33
B13: 36 | C13: 00:47:50
B14: 31 | C14: 00:48:35
B15: 33 | C15: 00:49:45
B16: 24 | C16: 00:47:33
B17: 36 | C17: 00:47:50
B18: 31 | C18: 00:48:35
B19: 33 | C19: 00:49:45
B20: 51 | C20: 00:57:15
B21: 39 | C21: 00:57:17
B22: 25 | C22: 00:58:02
B23: 33 | C23: 00:58:18
B24: 29 | C24: 00:58:37
B25: 46 | C25: 00:58:55
B26: 36 | C26: 00:58:56
B27: 29 | C27: 00:55:37
B28: 24 | C28: 00:47:33
B29: 36 | C29: 00:47:50
B30: 31 | C30: 00:48:35
B31: 33 | C31: 00:49:45
B32: 51 | C32: 00:57:15
B33: 32 | C33: 01:00:55
B34: 30 | C34: 01:01:07
B35: 41 | C35: 01:01:35
B36: 38 | C36: 01:06:00
B37: 38 | C37: 01:07:00
B38: 38 | C38: 01:07:00
B39: 38 | C39: 01:06:00
B40: 38 | C40: 01:07:00
B41: 38 | C41: 01:07:00
B42: 39 | C42: 01:03:36
B43: 33 | C43: 01:03:40
B44: 48 | C44: 01:03:50
B45: 30 | C45: 01:03:52
B46: 49 | C46: 01:04:23
B47: 36 | C47: 00:59:56
B48: 35 | C48: 01:00:02
B49: 32 | C49: 01:00:55
B50: 30 | C50: 01:01:07
B51: 41 | C51: 01:01:35
B52: 47 | C52: 01:02:00
B53: 43 | C53: 01:07:10
B54: 47 | C54: 01:07:15
B55: 46 | C55: 00:58:55
B56: 36 | C56: 00:58:56
B57: 25 | C57: 01:12:10
B58: 59 | C58: 01:12:45
B59: 27 | C59: 01:12:50
B60: 36 | C60: 01:12:56
B61: 50 | C61: 01:13:33
B62: 50 | C62: 01:13:33
B63: 37 | C63: 01:14:00
B64: 34 | C64: 01:14:15
B65: 29 | C65: 01:16:16
B66: 41 | C66: 01:16:25
B67: 36 | C67: 01:16:33
B68: 36 | C68: 01:16:33
B69: 31 | C69: 01:17:00
B70: 31 | C70: 01:17:00
B71: 50 | C71: 01:18:22
B72: 25 | C72: 01:18:35
B73: 52 | C73: 01:20:10
B74: 29 | C74: 01:20:45
B75: 37 | C75: 01:21:10
B76: 32 | C76: 01:21:10
B77: 30 | C77: 01:22:00
B78: 54 | C78: 01:23:21
B79: 54 | C79: 01:24:07
B80: 54 | C80: 01:24:08
B81: 33 | C81: 01:25:19
B82: 70 | C82: 01:25:23
B83: 43 | C83: 01:25:37
B84: 41 | C84: 01:33:44
B85: 46 | C85: 01:37:40

Sheet ćw.6
C2: PRZESTAWICIELE HANDLOWI | I2: Kwartały | J2: 5 | P2: 1 kwartał
I3: Pracownicy | J3: 7 | P3: 2 kwartał
C4: Kolumna1 | D4: Kowalski | E4: Rybiński | F4: Strzeczka | G4: Bubas | H4: Karoń | I4: Ostrzeszowski | J4: Porównanie wyników | P4: 3 kwartał
C5: styczeń | D5: 11200 | E5: 18100 | F5: 17900 | G5: 11400 | H5: 18300 | I5: 17600 | P5: 4 kwartał
C6: luty | D6: 9800 | E6: 18400 | F6: 16300 | G6: 11300 | H6: 17600 | I6: 11700 | P6: wszystkie
C7: marzec | D7: 8600 | E7: 14300 | F7: 12100 | G7: 12900 | H7: 16200 | I7: 12200
C8: kwiecień | D8: 17000 | E8: 16400 | F8: 10000 | G8: 8700 | H8: 14700 | I8: 11600
C9: maj | D9: 10100 | E9: 11800 | F9: 10000 | G9: 11500 | H9: 12500 | I9: 19300
C10: czerwiec | D10: 8500 | E10: 13000 | F10: 19300 | G10: 17600 | H10: 8100 | I10: 20000
C11: lipiec | D11: 17800 | E11: 14100 | F11: 17700 | G11: 19700 | H11: 18300 | I11: 15200
C12: sierpień | D12: 15700 | E12: 14900 | F12: 17100 | G12: 12300 | H12: 10800 | I12: 13500
C13: wrzesień | D13: 19300 | E13: 12500 | F13: 11100 | G13: 13800 | H13: 14000 | I13: 12900
C14: październik | D14: 9900 | E14: 19800 | F14: 12700 | G14: 8600 | H14: 13000 | I14: 10500
C15: listopad | D15: 15600 | E15: 11000 | F15: 13400 | G15: 11600 | H15: 14800 | I15: 16400
C16: grudzień | D16: 11600 | E16: 15900 | F16: 17800 | G16: 16400 | H16: 11800 | I16: 17900
C17: Dynamika wyniku | P17: Kowalski
P18: Rybiński
P19: Strzeczka
P20: Bubas
P21: Karoń
P22: Ostrzeszowski
P23: Wszyscy
